Cogmind - Beta 16 @@@ ROGUE MODE // 2025.12.22 @ 06:40:43 Player: Parkagirl Result: Destroyed by Y-54 Guardian with Gatling Laser Performance ------------- Evolutions (3) 1500 Regions Visited (4) 800 Robots Destroyed (47) 235 Value Destroyed (1214) 1214 Prototype IDs (6) 120 Alien Tech Used (0) 0 Bonus (0) 0 TOTAL SCORE: 3869 Bonus ------- None Cogmind --------- Core Integrity 0/700 Matter 62/300 Energy 100/100 System Corruption 5% Temperature Cool (12) Movement Core (50) Location -7/Factory Parts ------- > --- POWER (2) -------- (None) > --- PROPULSION (5) --- (None) > --- UTILITY (4) ------ (None) > --- WEAPON (2) ------- (None) > --- INVENTORY (5) ---- Nuclear Core Gravmag System Energy Filter EM Disruption Field Lightning Gun Peak State ------------ > --- POWER ------------ Deuterium Engine > --- PROPULSION ------- VTOL Module Improved VTOL Module Improved VTOL Module Improved VTOL Module Improved VTOL Module > --- UTILITY ---------- Weight Redist. System Improved Sensor Array Transport Network Coupler Target Analyzer > --- WEAPON ----------- Gauss Rifle Rocket Launcher > --- INVENTORY -------- Nuclear Core Nuclear Core Gravmag System [Rating: 37] Favorites ----------- Power Light Ion Engine Engine Light Ion Engine Propulsion Improved VTOL Module Treads Light Treads Leg Aluminum Leg Hover Unit Hover Unit Flight Unit Improved VTOL Module Utility Small Storage Unit Device Improved Terrain Scanner Storage Small Storage Unit Processor Transport Network Coupler Weapon EM Shotgun Energy Gun EM Shotgun Ballistic Gun Assault Rifle Launcher Rocket Launcher Build | -11 -10 -9 -8 -7 ------- Run | Yrd Mat Mat Mat Fac Slots Evolved 6 | . . 2 2 2 Power 1 | . . . . 1 Propulsion 3 | . . 1 1 1 Utility 2 | . . 1 1 . Weapon . | . . . . . Parts Attached 54 | 8 5 19 20 2 Power 5 | 1 1 2 1 . Engine 5 | 1 1 2 1 . Core . | . . . . . Reactor . | . . . . . Propulsion 17 | 2 1 8 6 . Treads 5 | . . 5 . . Leg 2 | 2 . . . . Wheel . | . . . . . Hover 1 | . 1 . . . Flight 9 | . . 3 6 . Utility 12 | 2 . 2 7 1 Device 6 | 1 . . 5 . Storage 2 | 1 . . . 1 Processor 4 | . . 2 2 . Hackware . | . . . . . Protection . | . . . . . Artifact . | . . . . . Weapon 20 | 3 3 7 6 1 Energy Gun 10 | 2 1 5 2 . Energy Cannon . | . . . . . Ballistic Gun 5 | 1 1 . 2 1 Ballistic Cannon . | . . . . . Launcher 5 | . 1 2 2 . Special Weapon . | . . . . . Impact Weapon . | . . . . . Slashing Weapon . | . . . . . Piercing Weapon . | . . . . . Special Melee Weapon . | . . . . . Unidentified Prototypes 4 | . . . 4 . Corrupted Parts 2 | . . 2 . . System Corruption 7 | . . 7 . . Parts Lost 23 | . 7 7 5 4 Power 5 | . 2 . 1 2 Propulsion 4 | . 1 3 . . Utility 4 | . 1 . 3 . Weapon 10 | . 3 4 1 2 Highest Loss Streak 5 | . 5 3 3 2 To Critical Strikes . | . . . . . Average Backups 4 | 4 5 4 6 3 Power . | . 1 . . . Propulsion 1 | 3 2 . . 1 Utility 1 | . 1 1 1 1 Weapon 1 | . . 2 3 . Tool/Special . | . . . . . Unused Backups 12 | . 4 . 2 6 Power 2 | . . . . 2 Propulsion 5 | . 4 . . 1 Utility 4 | . . . 2 2 Weapon 1 | . . . . 1 Tool/Special . | . . . . . Average Slot Usage (%) 76 | . 85 85 82 43 Engine 9 | . 12 10 8 4 Treads 5 | . . 15 . . Leg 6 | . 17 4 . . Hover 1 | . 4 . . . Flight 11 | . . 4 35 18 Device 7 | . 13 . 11 7 Storage 8 | . 14 11 6 . Processor 11 | . . 20 12 6 Energy Gun 9 | . 12 16 2 . Ballistic Gun 2 | . 8 . . . Launcher 2 | . . 1 4 4 Peak Build Rating 37 | 9 9 14 34 37 Average Rating 12 | 5 7 10 22 17 On Entrance 11 | . 9 4 13 31 Avg Prop Armor Cover (%) 5 | . . 7 4 5 Naked Turns 176 | . . . . 176 Heaviest Build 25 | 13 14 18 18 25 Greatest Support 60 | 20 20 60 26 30 Greatest Overweight (x) 5 | . 2 5 1 . Average Overweight (x) . | . . . . . Largest Inventory Capacity 10 | 8 8 8 8 10 Average Capacity 7 | 7 8 8 7 5 Most Carried 8 | 6 8 8 8 5 Average Carried 4 | 4 5 4 6 3 Final Capacity 8 | 8 8 8 5 5 Final Carried 8 | 6 3 8 5 5 Class Distribution -------------------- 62% | Mutant 31% | Sprinter 6% | Scavenger-Mutant Dominant Class ---------------- Mutant | -10/Materials Mutant | -9/Materials Sprinter | -8/Materials Mutant | -7/Factory Resources | -11 -10 -9 -8 -7 ----------- Run | Yrd Mat Mat Mat Fac Matter Collected 980 | 270 139 261 310 . Remotely . | . . . . . Salvage Created 1399 | 38 246 828 284 3 Parts 94 | 4 19 56 15 . Haulers Intercepted . | . . . . . Recyclers Shooed 1 | . . . . 1 Parts Field Recycled . | . . . . . Retrieved Matter . | . . . . . Parts Self-Destructed . | . . . . . Prevented . | . . . . . Parts Restored . | . . . . . Kills | -11 -10 -9 -8 -7 ------- Run | Yrd Mat Mat Mat Fac Combat Hostiles Destroyed 31 | . 8 16 7 . Guns 19 | . 8 10 1 . AOE 12 | . . 6 6 . Classes Destroyed 12 | 1 2 8 . 1 Worker 2 | . . 2 . . Builder 4 | . . 4 . . Tunneler 3 | 2 . . 1 . Recycler 2 | . . 1 1 . Mechanic 1 | . . . . 1 Operator 2 | . . 1 1 . Watcher 2 | . . 2 . . Swarmer 7 | . 3 4 . . Grunt 16 | . 5 6 5 . Brawler 1 | . . 1 . . Duelist 3 | . . 2 1 . Sentry 4 | . . 3 1 . Best Kill Streak 8 | 2 3 8 6 1 Combat Bots Only 4 | . 3 4 4 . Max Kills in Single Turn 3 | 1 1 3 2 1 Gunslinging . | . . . . . Exploded 2 | . . 2 2 . Melee . | . . . . . Uniques/NPCs Destroyed . | . . . . . Combat | -11 -10 -9 -8 -7 -------- Run | Yrd Mat Mat Mat Fac Hostile Shots Fired 444 | . 100 84 32 228 Missed 200 | . 26 27 18 129 Hits 244 | . 74 57 14 99 Melee 5 | . . 4 1 . Projectile 239 | . 74 53 13 99 Critical Strikes 3 | . 1 1 1 . Damage Taken 3213 | . 875 843 428 1067 Core 1251 | . 210 209 128 704 Absorbed by Shields 49 | . . . 49 . Core Remaining (%) 59 | 100 16 47 76 . Volleys Fired 111 | 4 36 48 18 5 Largest 2 | 2 2 2 2 2 Hottest 100 | 100 100 90 95 66 Shots Fired 158 | 8 42 77 22 9 Gun 127 | 8 42 72 4 1 Cannon . | . . . . . Launcher 31 | . . 5 18 8 Special . | . . . . . Kinetic 24 | . 23 . . 1 Thermal 38 | 8 19 7 4 . Explosive 31 | . . 5 18 8 Electromagnetic 65 | . . 65 . . Robot Hit Streak 19 | 3 5 19 6 6 Robot Miss Streak 5 | 1 3 5 3 4 Penetration Max . | . . . . . Secondary Targets 2 | . . 2 . . Max Gunslinging Chain 1 | . . 1 . . Shots Hit Robots 104 | 5 24 56 13 6 Core Hits 94 | 2 14 46 22 10 Critical Kills . | . . . . . Critical Parts Destroyed . | . . . . . Critical Strikes 2 | 1 1 . . . Burn 2 | 1 1 . . . Melee Attacks . | . . . . . Impact . | . . . . . Slashing . | . . . . . Piercing . | . . . . . Sneak Attacks . | . . . . . Combat Hostiles . | . . . . . Follow-up Attacks . | . . . . . Damage Inflicted 3113 | 65 300 1506 930 312 Guns 1265 | 65 293 857 50 . Cannons . | . . . . . Explosions 1778 | . . 643 880 255 Melee . | . . . . . Ramming 70 | . 7 6 . 57 Kinetic 181 | . 181 . . . Thermal 559 | 65 112 332 50 . Explosive 1454 | . . 355 844 255 Electromagnetic 849 | . . 813 36 . Impact . | . . . . . Slashing . | . . . . . Piercing . | . . . . . Highest Corruption 7 | . . 7 1 5 Average Corruption 3 | . . 5 1 2 Corruption Purged . | . . . . . Corruption Blocked . | . . . . . Effects 7 | . . 6 . 1 Message Errors 2 | . . 2 . . Matter Fused 1 | . . 1 . . Heat Flow Errors 1 | . . . . 1 Energy Discharges 1 | . . 1 . . Data Loss (minor) 1 | . . 1 . . Misfires 1 | . . 1 . . Overload Shots . | . . . . . Overflow Damage 97 | . . 70 27 . Projectiles . | . . . . . Explosions 97 | . . 70 27 . Melee . | . . . . . Knockbacks 3 | . . 1 . 2 Impact 3 | . . 1 . 2 Kinetic . | . . . . . Secondary . | . . . . . Self-Inflicted Damage 409 | . 3 70 241 95 Shots 13 | . . 3 7 3 Rammed 18 | . 2 1 . 15 Targets Rammed 19 | . 2 2 . 15 Kicked . | . . . . . Crushed 1 | . . 1 . . Highest Temperature 288 | 120 78 288 68 151 Average Temperature 71 | 61 39 92 33 35 Received Heat Transfer 954 | . 402 288 105 159 Effects 2 | . . 2 . . Interference 2 | . . 2 . . Siege Activations . | . . . . . Martial Activations . | . . . . . Shielding Activations . | . . . . . Robots Disrupted . | . . . . . Combat Hostiles . | . . . . . Robots Corrupted . | . . . . . Combat Hostiles . | . . . . . Parts Fried 5 | . . 5 . . Impact Corruptions . | . . . . . Robots Melted . | . . . . . Combat Hostiles . | . . . . . Parts Melted 1 | 1 . . . . Heat Transferred 1306 | 259 348 600 99 . Parts Sabotaged . | . . . . . Parts Stolen . | . . . . . Parts Stripped . | . . . . . Power Chain Reactions 6 | . . 6 . . Alert | -11 -10 -9 -8 -7 ------- Run | Yrd Mat Mat Mat Fac Maximum Alert Level 1 | . . 1 1 . Low Security (%) 88 | 100 100 95 40 100 Level 1 11 | . . 4 59 . Level 2 . | . . . . . Level 3 . | . . . . . Level 4 . | . . . . . Level 5 . | . . . . . High Security . | . . . . . Max Security . | . . . . . Peak Influence 291 | 10 91 225 291 158 Initial 100 | . . 10 51 100 Average 93 | 1 24 87 211 118 Influence Increases 1309 | 10 206 549 350 194 Destroy 0b10 Robot/C 620 | . 160 320 140 . Destroy 0b10 Robot/NC 80 | 10 . 50 15 5 Destroy Leader 144 | . 40 74 30 . Successful Hack 42 | . 5 7 3 27 Disable Machine 45 | . . . 45 . Destroy Structure 153 | . 1 53 72 27 Partial Spotted 60 | . . . 15 45 Lose Combat Pursuer 165 | . . 45 30 90 Influence Decreases 1225 | 10 181 451 252 331 Entered New Map 208 | . . 15 72 121 Time Decay 649 | 10 111 228 130 170 Lost Part 218 | . 70 58 50 40 Purge Threat 150 | . . 150 . . Squads Dispatched 12 | . 2 1 2 7 Investigation 5 | . 1 1 1 2 Extermination 1 | . . . . 1 Reinforcement 6 | . 1 . 1 4 Assault . | . . . . . Garrison . | . . . . . Intercept . | . . . . . Searches Triggered . | . . . . . Construction Impeded 2 | . . . 1 1 Haulers Reinforced . | . . . . . Active Scanning Responses . | . . . . . Cargo Convoy Interrupts . | . . . . . Stealth | -11 -10 -9 -8 -7 --------- Run | Yrd Mat Mat Mat Fac Distress Signals 11 | . 3 3 5 . Communications Jammed . | . . . . . Distress Signals . | . . . . . Times Spotted 72 | . 15 27 13 17 Peak Tracking Total 8 | . 8 7 3 8 Tactical Retreats 7 | . . 2 2 3 Traps | -11 -10 -9 -8 -7 ------- Run | Yrd Mat Mat Mat Fac Traps Triggered 3 | . 1 . 1 1 Indirectly . | . . . . . Trap Hack Attempts . | . . . . . Triggered . | . . . . . Disarmed . | . . . . . Reprogrammed . | . . . . . Reused . | . . . . . Traps Extracted . | . . . . . Installed . | . . . . . Triggered . | . . . . . Machines | -11 -10 -9 -8 -7 ---------- Run | Yrd Mat Mat Mat Fac Machines Disabled 3 | . . . 3 . Max in Single Turn 2 | . . . 2 . Machines Repaired . | . . . . . Machines Dismantled . | . . . . . Machines Sabotaged . | . . . . . Overloaded Fab Kills . | . . . . . Hacking | -11 -10 -9 -8 -7 --------- Run | Yrd Mat Mat Mat Fac Machines Accessed 12 | . 1 4 2 5 Terminals 9 | . 1 3 2 3 Fabricators . | . . . . . Repair Stations 1 | . . . . 1 Recycling Units 1 | . . 1 . . Scanalyzers 1 | . . . . 1 Garrison Access . | . . . . . Total Hacks 41 | . 6 16 6 13 Successful 20 | . 4 8 3 5 Failed 20 | . 2 8 3 7 Catastrophic 3 | . . 1 1 1 Database Lockouts 1 | . . . . 1 Manual 1 | . 1 . . . Terminals 34 | . 6 15 6 7 Fabricators . | . . . . . Repair Stations 3 | . . . . 3 Recycling Units 1 | . . 1 . . Scanalyzers 3 | . . . . 3 Garrison Access . | . . . . . Terminal Hacks 17 | . 4 7 3 3 Record 1 | . . 1 . . Robot Analysis 1 | . . . . 1 Prototype ID Bank 1 | . 1 . . . Emergency Access Points 1 | . . . 1 . Alert Level 3 | . . 1 1 1 Unreport Threat 1 | . . 1 . . Dispatch Records 3 | . 1 2 . . Maintenance Status 1 | . . . 1 . Investigation Status 1 | . . 1 . . Recall Investigation 2 | . . 1 . 1 Registered Components 1 | . 1 . . . Zone Layout 1 | . 1 . . . Fabricator Hacks . | . . . . . Repair Station Hacks 1 | . . . . 1 Scan Component 1 | . . . . 1 Recycling Unit Hacks 1 | . . 1 . . Report Inventory 1 | . . 1 . . Scanalyzer 1 | . . . . 1 Retrieve Study 1 | . . . . 1 Garrison Access Hacks . | . . . . . Unauthorized Hacks . | . . . . . Terminals . | . . . . . Fabricators . | . . . . . Repair Stations . | . . . . . Recycling Units . | . . . . . Scanalyzers . | . . . . . Garrison Access . | . . . . . Data Cores Recovered 1 | . . 1 . . Used . | . . . . . Hacking Detections 9 | . 1 2 2 4 Full Trace Events 5 | . . 1 2 2 Feedback Events . | . . . . . Feedback Blocked . | . . . . . Robot Schematics Acquired . | . . . . . Robots Built . | . . . . . Authchips . | . . . . . Time . | . . . . . Total Robot Build Rating . | . . . . . Part Schematics Acquired . | . . . . . Parts Built . | . . . . . Authchips . | . . . . . Time . | . . . . . Total Part Build Rating . | . . . . . Part Studies Acquired 1 | . . . . 1 Parts Repaired . | . . . . . Time . | . . . . . Parts Recycled . | . . . . . Recycled Matter . | . . . . . Retrieved Matter . | . . . . . Retrieved Components . | . . . . . Parts Scanalyzed . | . . . . . Part Schematics Acquired . | . . . . . Parts Damaged . | . . . . . Bothacking | -11 -10 -9 -8 -7 ------------ Run | Yrd Mat Mat Mat Fac Used RIF Installer . | . . . . . Robots Hacked . | . . . . . Non-combat . | . . . . . Combat . | . . . . . Robot Hacks Applied . | . . . . . Relay Couplers Released . | . . . . . Fabnet Peak Effective % . | . . . . . Robots Rewired . | . . . . . Allies Hacked . | . . . . . Hacks Repelled . | . . . . . Allies | -11 -10 -9 -8 -7 -------- Run | Yrd Mat Mat Mat Fac Total Allies . | . . . . . Largest Group . | . . . . . Highest-Rated Group . | . . . . . Highest-Rated Ally . | . . . . . Total Orders . | . . . . . Ally Attacks . | . . . . . Total Damage . | . . . . . Kills . | . . . . . Allies Corrupted . | . . . . . Allies Melted . | . . . . . Intel | -11 -10 -9 -8 -7 ------- Run | Yrd Mat Mat Mat Fac Active Infowar (turns) 1438 | 9 418 558 278 175 Optics 16 | . . . 16 . Sensors 253 | . . . 80 173 Terrain 427 | 9 418 . . . T.N.C. 980 | . . 558 278 144 Robot Analysis Total 1 | . . . . 1 Derelict Logs Recovered . | . . . . . Drone Launches . | . . . . . Drone Recoveries . | . . . . . Exploration | -11 -10 -9 -8 -7 ------------- Run | Yrd Mat Mat Mat Fac Turns Passed 1742 | 85 433 595 278 351 Spaces Moved 1985 | 49 246 401 511 778 Core 308 | 5 . 2 . 301 Treads 173 | . . 173 . . Legs 293 | 44 179 70 . . Wheels . | . . . . . Hover 67 | . 67 . . . Flight 1144 | . . 156 511 477 Fastest Speed 23 | 50 120 29 26 23 Average Speed 62 | 112 134 105 28 36 Slowest Speed 300 | 120 180 300 109 50 Overloaded Moves . | . . . . . Propulsion Burnouts . | . . . . . Robots Hopped 8 | . . . 4 4 Potential Cave-ins . | . . . . . Cave-ins Triggered . | . . . . . Exploration Rate (%) 26 | 5 35 38 33 20 Regions Visited 4 Branch Regions . Pre-discovered Areas . | . . . . . Known Exits Taken . | . . . . . Unknown Exits Taken 4 | 1 1 1 1 . Scrap Searched . | . . . . . Spaces Dug . | . . . . . Terrain Destroyed 187 | . . 58 99 30 Melee . | . . . . . Projectile . | . . . . . AOE 187 | . . 58 99 30 Terrain Rammed . | . . . . . Walls Destroyed . | . . . . . Machines Disabled . | . . . . . Actions | -11 -10 -9 -8 -7 --------- Run | Yrd Mat Mat Mat Fac Total 2322 | 66 307 491 621 837 Wait 60 | . 1 2 35 22 Move 1965 | 48 245 400 502 770 Hop 8 | . . . 4 4 Pick Up 35 | 6 5 11 7 6 Fast Attach 33 | 7 2 10 12 2 Attach 32 | . 7 9 10 6 Detach 15 | . 3 2 8 2 Swap 9 | 1 . 2 6 . Drop 35 | . 6 5 19 5 Fire 111 | 4 36 48 18 5 Melee . | . . . . . Ram 17 | . 2 . . 15 Kick . | . . . . . Crush 2 | . . 2 . . Escape Stasis . | . . . . . Rewire . | . . . . . Trap . | . . . . . Miscellaneous . | . . . . . Route ------- -11/Scrapyard -10/Materials -9/Materials -8/Materials -7/Factory History --------- Turn | Location | Event 7 | -11/Scrapyard | Discovered new exit (range 15) 86 | -11/Scrapyard | Entered Materials 302 | -10/Materials | Build established: Mutant 385 | -10/Materials | Core integrity fell below 50% 419 | -10/Materials | Lost 5 parts (1p1n3w) 498 | -10/Materials | Discovered new exit (range 14) 503 | -10/Materials | Core integrity fell below 20% 519 | -10/Materials | Entered another Materials area 519 | -9/Materials | Evolved 2 slots: Propulsion x1, Utility x1 728 | -9/Materials | Lost 3 parts (1n2w) 942 | -9/Materials | Core integrity fell below 50% 1102 | -9/Materials | Discovered new exit (range 16) 1114 | -9/Materials | Entered another Materials area 1114 | -8/Materials | Evolved 2 slots: Propulsion x1, Utility x1 1188 | -8/Materials | Lost 3 parts (1p1u1w) 1212 | -8/Materials | Met 7R-MNS 1214 | -8/Materials | Discovered new exit (range 15) 1341 | -8/Materials | Build established: Sprinter 1392 | -8/Materials | Entered Factory 1392 | -7/Factory | Evolved 2 slots: Power x1, Propulsion x1 1538 | -7/Factory | Central database locked down 1567 | -7/Factory | Released all parts (8) 1695 | -7/Factory | Core integrity fell below 50% 1739 | -7/Factory | Core integrity fell below 20% 1743 | -7/Factory | Destroyed by Y-54 Guardian with Gatling Laser Last Messages --------------- 01719_ ALERT: Hostiles spotted, dispatching reinforcements to Terminal F001. 01719_ O-24 Administrator locks terminal. 01720_ Slug penetrates Power Conduit. 01721_ Slammed into R-06 Scavenger. 01721_ K-01 Serf cleans the Power Conduit. 01721_ K-01 Serf cleans the Terminal. 01723_ Penetrated by Slug. 01724_ K-01 Serf cleans the Terminal. 01725_ Slug penetrates Power Conduit. 01726_ Penetrated by Slug. 01726_ Slug penetrates Wall. 01740_ Slammed into P-60 Hacker. 01740_ Destabilizing: Core damaged (-14). 01741_ Slammed into P-60 Hacker. 01741_ K-01 Serf cleans the Nuclear Reactor. 01742_ Slug penetrates Wall. 01742_ Penetrated by Slug. 01742_ Slammed into P-60 Hacker. 01743_ Slammed into H-55 Commando. Map ----- +----------------------------------------------------+ | ?????????????????????????????????????????????????? | | ?????????????????????????????????????????????????? | | ?????????????????????????????????????????????????? | | ?????????????????????????????????????????????????? | | ?????????????????????????????????????????????????? | | ?????????????????????????????????????????????????? | | ?????????????????????????????????????????????????? | | ?????????????????????????????????????????????????? | | ??????????????????????????? ??????????????????? | | ?????????????????????????# ??????????????????? | | ?????????????????????????# #?????????????????? | | ?????????????????????????# #?????????????????? | | ?????????????????????????# #?????????????????# | | ?????????????????????????# #?????????????????# | | ?????????????????###?????# #?????????????????# | | ?????????????????? ???## ^ ##????????######### | | ?????????????????? ??# #????????# # | | ??????????????????? ?# ##+####### # | | ???????????????????? # !=# | | ?????????????????????? + ]%=/ | | ????????????????????????# """"""""" ! = # | | ????????????????????????# # | | ????????????????????????# """"""""" # | | ?????????????????########## h h # | | ?????????????????# #k """"""""" # | | ?????????????????# k"""@h u h # | | ?????????????????# """p# k """"""""" =# | | ?????????????????# """ # o w # | | ?????????????????# p # k Y # | | ?????????????????# ! " " # ""T"" # | | ?????????????????# "Y" # """"" # | | ?????????????????# """ ## ##### # | | ?????????????????# ## #???# | | ?????????????????########### #???# | | ???????????????????????????# #???# | | ???????????????????????????# #????### | | ???????????????????????????? #??????###+## | | ???????????????????????????? #???????????# # | | ???????????????????????????? ????????????### ### | | ???????????????????????????? ??????????????# ??? | | ???????????????????????????????????????????# ??? | | ???????????????????????????????????????????# ??? | | ???????????????????????????????????????????# ??? | | ??????????????????????????????????????????? ??? | | ??????????????????????????????????????????# ???? | | ??????????????????????????????????????????+ T???? | | ???????????????????????????????????????????? ????? | | ?????????????????????????????????????????????????? | | ?????????????????????????????????????????????????? | | ?????????????????????????????????????????????????? | +----------------------------------------------------+ Best States ------------- Heat Dissipation 64 Energy Generation 21 Energy Capacity 440 Matter Stores 300 Matter Capacity 300 Sight Range 18 Robot Scan Range 15 Terrain Scan Range 16 Terrain Scan Density 10 Additional Mass Support 6 Evasion (%) 65 Targeting Accuracy 5 Target Analysis 5 Recoil Reduction 3 Item Schematics ----------------- None Robot Schematics ------------------ None Fabricated ------------ Nothing Repaired ---------- Nothing Studied --------- Deuterium Engine | -7/Factory | Hacked Alien Tech Used ----------------- None Achievements -------------- GoHome() Challenges ------------ None Game ------ Seed BottomlessBraceArray Manual? 0 Play Time 00:37:25 Cumulative 12.6 hours Start 2025.12.21 @ 20:33:22 End 2025.12.22 @ 06:40:43 Sessions 7 Manual Loads 0 Difficulty Rogue Special Mode None Game No. 24 Rogue 24 Adventurer 0 Explorer 0 Win Type - Total 0 Types 0/0/0/0/0/0/0/0/0/0 Lore% 16 Gallery% 16 Achievement% 16 Wizard Run 0 Options --------- Layout 1 ASCII 0 Keyboard 0 Movement Vi Keybinds 0 Fullscreen 1 Font 24/Tamsyn Map View 50x40 Zoom Use 36% Tactical HUD 1 Map Filters NONE Filters NONE Steam 1 RUN: 0d0fa232-aaa3-4cf4-817e-26852ed479e1